bitfinex-derivatives/quotes_BNBF0:USTF0_20230901
["timestamp","ask_amount","ask_price","bid_price","bid_amount"]
[1693591080905,0.17346658,212.39,211.83,0.86722922]
[1693591081103,0.17346658,212.4,211.84,0.86722047]
[1693591081403,0.17346658,212.39,211.82,0.07687229]
[1693591081603,0.17346658,212.39,211.83,0.94409255]
[1693591081801,0.17346658,212.39,211.84,0.86722026]
[1693591081996,7.09880205,212.38,211.84,0.86722026]
[1693591082200,0.17346658,212.37,211.77,0.07687229]
[1693591082405,0.17346658,212.37,211.78,0.86747756]
[1693591082705,0.17346658,212.37,211.78,0.94434985]
[1693591082903,0.17346658,212.37,211.79,0.86747756]
[1693591083302,5.07057289,212.36,211.79,0.86747756]
[1693591083502,0.17346658,212.35,211.79,0.86747756]
[1693591084505,0.17346658,212.35,211.82,0.07687229]
[1693591084705,0.17346658,212.38,211.83,0.86747756]
[1693591084908,0.17346658,212.37,211.83,0.86747756]
[1693591085110,0.17346658,212.39,211.83,0.86747756]
[1693591085312,0.17346658,212.38,211.83,0.86747756]
[1693591085509,0.17346658,212.39,211.83,0.86747756]
[1693591085813,0.17346658,212.39,211.83,0.94434985]
[1693591086009,0.17346658,212.39,211.84,0.86747756]
[1693591086209,0.17346658,212.4,211.84,0.86747756]
[1693591086410,0.17346658,212.39,211.84,0.86747756]
[1693591086612,0.17346658,212.4,211.84,0.94434985]
[1693591086812,0.17346658,212.4,211.85,0.86747756]
[1693591087412,0.17346658,212.39,211.85,0.94434985]
[1693591087613,0.17346658,212.41,211.86,0.86747756]
[1693591087813,0.17346658,212.4,211.86,0.86747756]
[1693591088012,5.07057289,212.42,211.86,0.86747756]
[1693591088013,0.17346658,212.41,211.86,0.86747756]
[1693591088206,0.17346658,212.41,211.84,0.07687229]
[1693591088408,0.17346658,212.41,211.85,0.86719436]
[1693591089313,0.17346658,212.41,211.85,0.94406665]
[1693591089513,0.17346658,212.41,211.86,0.86719436]
[1693591090107,5.24403947,212.41,211.86,0.86719436]
[1693591090308,0.17346658,212.4,211.86,0.86719436]
[1693591090913,0.17346658,212.4,211.85,0.86719436]
[1693591091116,0.17346658,212.4,211.86,0.86718865]
[1693591091413,0.17346658,212.4,211.85,0.07687229]
[1693591091614,5.24403947,212.4,211.86,0.86717899]
[1693591091815,0.17346658,212.39,211.86,0.86717899]
[1693591092313,5.24403947,212.39,211.86,0.86717899]
[1693591092510,0.17346658,212.38,211.86,0.86717899]
[1693591093411,5.24403947,212.38,211.86,0.86717899]
[1693591093713,0.17346658,212.37,211.86,0.86717899]
[1693591093910,5.24403947,212.38,211.87,0.07687229]
[1693591094217,5.24403947,212.37,211.86,0.07687229]
[1693591094417,0.17346658,212.36,211.87,0.86715562]
[1693591095218,0.17346658,212.36,211.87,0.07687229]
[1693591095420,0.17346658,212.36,211.86,0.07687229]
[1693591095618,0.17346658,212.36,211.87,0.07687229]
[1693591095919,0.17346658,212.36,211.86,0.07687229]
[1693591096419,5.07057289,212.35,211.86,0.07687229]
[1693591096615,0.17346658,212.34,211.86,0.07687229]
[1693591097116,5.24403947,212.34,211.87,0.07687229]
[1693591097312,5.24403947,212.34,211.86,0.07687229]
[1693591097313,0.17346658,212.33,211.86,0.07687229]
[1693591097720,0.17346658,212.33,211.87,0.07687229]
[1693591098020,5.24403947,212.33,211.87,0.07687229]
[1693591098219,0.17346658,212.32,211.87,0.07687229]
[1693591098616,0.17346658,212.32,211.86,0.07687229]
[1693591100522,5.24403947,212.32,211.86,0.07687229]
[1693591100722,0.17346658,212.31,211.86,0.07687229]
[1693591100923,0.17346658,212.31,211.85,0.07687229]
[1693591101123,0.17346658,212.31,211.84,0.07687229]
[1693591101823,5.24403947,212.31,211.84,0.07687229]
[1693591102023,0.17346658,212.3,211.84,0.07687229]
[1693591105520,5.24403947,212.3,211.84,0.07687229]
[1693591105725,0.17346658,212.29,211.84,0.07687229]
[1693591106121,0.17346658,212.29,211.77,0.15374459]
[1693591106122,0.17346658,212.29,211.83,0.07687229]
[1693591106322,0.17346658,212.29,211.84,0.86721348]
[1693591106517,0.17346658,212.29,211.83,0.07687229]
[1693591106925,0.17346658,212.29,211.82,0.07687229]
[1693591107119,0.17346658,212.29,211.83,0.86724015]
[1693591107318,5.24403947,212.29,211.83,0.86724015]
[1693591107524,0.17346658,212.28,211.83,0.86724015]
[1693591107723,0.17346658,212.28,211.83,0.94411244]
[1693591107924,0.17346658,212.27,211.84,0.86724015]
[1693591108125,0.17346658,212.29,211.84,0.86724015]
[1693591108326,0.17346658,212.28,211.84,0.86724015]
[1693591108526,0.17346658,212.29,211.84,0.86724015]
[1693591108826,0.17346658,212.28,211.84,0.86724015]
[1693591109027,0.17346658,212.27,211.84,0.86724015]
[1693591109227,0.17346658,212.26,211.84,0.86724015]
[1693591109427,0.17346658,212.25,211.84,0.86724015]
[1693591109727,0.17346658,212.24,211.84,0.86724015]
[1693591109927,5.24403947,212.29,211.84,0.86724015]
[1693591110128,0.17346658,212.28,211.83,0.86724015]
[1693591110428,0.17346658,212.28,211.84,0.86721517]
[1693591110626,0.17346658,212.28,211.82,0.07687229]
[1693591110826,0.17346658,212.28,211.83,0.86721462]
[1693591111425,5.24403947,212.28,211.83,0.86721462]
[1693591111622,0.17346658,212.27,211.83,0.86721462]
[1693591112024,0.17346658,212.26,211.83,0.86721462]
[1693591112224,0.17346658,212.28,211.83,0.86721462]
[1693591112427,0.17346658,212.27,211.83,0.86721462]
[1693591112728,0.17346658,212.26,211.83,0.86721462]
[1693591112924,0.17346658,212.25,211.83,0.86721462]
[1693591113123,0.17346658,212.24,211.83,0.86721462]
[1693591113330,0.17346658,212.23,211.83,0.86721462]
[1693591113529,0.17346658,212.22,211.83,0.86721462]
[1693591113731,0.17346658,212.21,211.83,0.86721462]
[1693591114030,0.17346658,212.2,211.83,0.86721462]
[1693591114230,0.17346658,212.28,211.83,0.86721462]
[1693591114430,0.17346658,212.27,211.83,0.86721462]
[1693591114732,0.17346658,212.26,211.83,0.86721462]
[1693591114924,0.17346658,212.28,211.83,0.86721462]
[1693591115128,0.17346658,212.27,211.83,0.86721462]
[1693591115424,0.17346658,212.26,211.83,0.86721462]
[1693591115628,0.17346658,212.28,211.83,0.86721462]
[1693591115830,0.17346658,212.27,211.83,0.86721462]
[1693591116030,0.17346658,212.26,211.83,0.86721462]
[1693591116331,0.17346658,212.25,211.83,0.86721462]
[1693591116630,0.17346658,212.24,211.83,0.94408691]
[1693591116829,0.17346658,212.24,211.6,1.02496396]
[1693591116830,0.17346658,212.23,211.84,0.86721462]
[1693591117031,0.17346658,212.22,211.83,0.07725402]
[1693591117231,0.17346658,212.21,211.84,0.86718117]
[1693591117426,0.17346658,212.2,211.84,0.86718117]
[1693591117629,0.17346658,212.19,211.84,0.86718117]
[1693591117830,0.17346658,212.28,211.84,0.86718117]
[1693591118130,0.17346658,212.27,211.81,0.07725402]
[1693591118332,7.30501189,212.28,211.82,0.94447008]
[1693591118529,0.17346658,212.27,211.83,0.94447008]
[1693591118831,0.17346658,212.27,211.83,0.07725402]
[1693591119027,5.09396094,212.26,211.83,0.07725402]
[1693591119229,0.17346658,212.25,211.83,0.07725402]
[1693591119630,0.17346658,212.25,211.82,0.07725402]
[1693591120030,0.17346658,212.25,211.83,0.94446808]
[1693591120231,0.17346658,212.25,211.82,0.07725402]
[1693591120532,0.17346658,212.25,211.76,0.15450805]
[1693591120533,0.17346658,212.25,211.83,0.07725402]
[1693591121429,0.17346658,212.25,211.82,0.07725402]
[1693591121628,5.26742752,212.25,211.82,0.07725402]
[1693591121831,0.17346658,212.24,211.82,0.07725402]
[1693591123237,0.17346658,212.24,211.81,0.07725402]
[1693591123440,0.17346658,212.24,211.82,0.86725437]
[1693591125235,0.17346658,212.24,211.81,0.07725402]
[1693591125435,0.17346658,212.24,211.82,0.86726069]
[1693591125940,0.17346658,212.24,211.81,0.07725402]
[1693591129238,0.17346658,212.24,211.8,0.07725402]
[1693591129443,0.17346658,212.24,211.81,0.86728308]
[1693591129642,5.26742752,212.24,211.81,0.86728308]
[1693591129843,0.17346658,212.23,211.81,0.86728308]
[1693591130342,0.17346658,212.24,211.81,0.86728308]
[1693591130543,0.17346658,212.23,211.81,0.86728308]
[1693591130743,0.17346658,212.24,211.81,0.86728308]
[1693591130944,0.17346658,212.23,211.81,0.86728308]
[1693591131145,0.17346658,212.22,211.81,0.86728308]
[1693591131346,0.17346658,212.21,211.81,0.86728308]
[1693591131647,0.17346658,212.21,211.8,0.07725402]
[1693591131648,0.17346658,212.2,211.8,0.07725402]
[1693591131840,0.17346658,212.24,211.8,0.07725402]
[1693591132042,5.09396094,212.2,211.76,0.07725402]
[1693591132248,0.17346658,212.19,211.75,0.07725402]
[1693591132447,0.17346658,212.19,211.76,0.86753231]
[1693591133547,0.17346658,212.19,211.74,0.07725402]
[1693591133740,0.17346658,212.18,211.75,0.8675301]
[1693591133944,0.17346658,212.17,211.75,0.8675301]
[1693591134147,0.17346658,212.16,211.75,0.8675301]
[1693591134346,0.17346658,212.15,211.75,0.8675301]
[1693591134548,0.17346658,212.21,211.74,0.8675301]
[1693591134749,5.09396094,212.22,211.75,0.8675301]
[1693591134750,0.17346658,212.2,211.75,0.8675301]
[1693591134950,0.17346658,212.21,211.74,0.8675301]
[1693591135149,0.17346658,212.2,211.75,0.8675301]
[1693591135348,0.17346658,212.21,211.74,0.8675301]
[1693591135544,0.17346658,212.2,211.75,0.8675301]
[1693591135747,0.17346658,212.19,211.76,0.8675301]
[1693591135946,0.17346658,212.18,211.73,0.07725402]
[1693591136145,0.17346658,212.17,211.74,0.86752254]
[1693591136347,0.17346658,212.16,211.75,0.86752254]
[1693591136545,0.17346658,212.22,211.73,0.86752254]
[1693591136744,0.17346658,212.21,211.74,0.86752254]
[1693591137249,0.17346658,212.2,211.74,0.86752254]
[1693591137550,5.09396094,212.24,211.74,0.86752254]
[1693591137551,0.17346658,212.19,211.74,0.86752254]
[1693591137751,0.17346658,212.18,211.74,0.94477656]
[1693591137950,0.17346658,212.17,211.75,0.86752254]
[1693591138151,0.17346658,212.16,211.75,0.86752254]
[1693591138452,0.17346658,212.15,211.75,0.86752254]
[1693591138645,0.17346658,212.14,211.75,0.86752254]
[1693591138849,0.17346658,212.13,211.75,0.86752254]
[1693591139148,0.17346658,212.12,211.75,0.86752254]
[1693591139350,0.17346658,212.11,211.75,0.86752254]
[1693591139545,0.17346658,212.1,211.75,0.86752254]
[1693591139748,0.17346658,212.25,211.75,0.86752254]
[1693591139945,0.17349084,212.24,211.75,0.86752254]
[1693591140144,0.17349084,212.23,211.75,0.86752254]
[1693591140350,0.17349084,212.25,211.75,0.86752254]
[1693591140550,0.17349084,212.24,211.75,0.86752254]
[1693591140749,0.17349084,212.23,211.78,0.07725402]
[1693591140950,0.17349084,212.29,211.79,0.86752254]
[1693591141251,0.17349084,212.28,211.79,0.94477656]
[1693591141451,0.17349084,212.29,211.8,0.86752254]
[1693591141651,0.17349084,212.28,211.8,0.86752254]
[1693591141846,0.17349084,212.27,211.8,0.86752254]
[1693591142049,5.09396094,212.3,211.79,0.94477656]
[1693591142050,0.17349084,212.29,211.79,0.94477656]
[1693591142349,0.17349084,212.28,211.8,0.86752254]
[1693591142543,5.09396094,212.3,211.8,0.86752254]
[1693591142544,0.17349084,212.29,211.8,0.86752254]
[1693591142743,0.17349084,212.28,211.8,0.86752254]
[1693591142949,0.17349084,212.27,211.8,0.86752254]
[1693591143149,0.17349084,212.29,211.8,0.86752254]
[1693591143848,0.17349084,212.28,211.8,0.86752254]
[1693591144046,0.17349084,212.3,211.8,0.86752254]
[1693591144247,0.17349084,212.29,211.8,0.86752254]
[1693591144452,0.17349084,212.3,211.8,0.86752254]
[1693591144652,0.17349084,212.29,211.8,0.86752254]
[1693591144947,0.17349084,212.28,211.8,0.86752254]
[1693591145153,0.17349084,212.27,211.8,0.86752254]
[1693591145453,0.17349084,212.26,211.8,0.86752254]
[1693591145652,5.09396094,212.31,211.8,0.86752254]
[1693591145653,0.17349084,212.25,211.8,0.86752254]
[1693591145853,0.17349084,212.24,211.8,0.94477656]
[1693591146053,0.17349084,212.23,211.81,0.86752254]
[1693591146256,0.17349084,212.22,211.81,0.86752254]
[1693591146456,0.17349084,212.21,211.81,0.86752254]
[1693591146658,0.17349084,212.2,211.81,0.86752254]
[1693591146955,0.17349084,212.19,211.81,0.86752254]
[1693591147154,0.17349084,212.18,211.82,0.86752254]
[1693591147351,0.17349084,212.3,211.83,0.86752254]
[1693591147548,0.17349084,212.29,211.79,0.07725402]
[1693591147754,0.17349084,212.28,211.8,0.86724246]
[1693591147953,0.17349084,212.27,211.8,0.86724246]
[1693591148155,0.17349084,212.26,211.8,0.86724246]
[1693591148350,0.17349084,212.25,211.8,0.86724246]
[1693591148550,0.17349084,212.3,211.8,0.86724246]
[1693591148754,0.17349084,212.29,211.8,0.86724246]
[1693591149054,0.17349084,212.28,211.8,0.94449648]
[1693591149255,0.17349084,212.27,211.81,0.86724246]
[1693591149457,0.17349084,212.3,211.81,0.86724246]
[1693591149653,0.17349084,212.29,211.81,0.86724246]
[1693591149853,0.17349084,212.3,211.81,0.86724246]
[1693591151854,0.17349084,212.31,211.81,0.86724246]
[1693591152059,0.17349084,212.3,211.81,0.86724246]
[1693591152260,0.17349084,212.31,211.81,0.86724246]
[1693591152559,0.17349084,212.3,211.81,0.86724246]
[1693591152754,0.17349084,212.31,211.81,0.86724246]
[1693591152958,0.17349084,212.3,211.81,0.86724246]
[1693591153158,0.17349084,212.31,211.81,0.86724246]
[1693591153354,0.17349084,212.3,211.81,0.86724246]
[1693591153557,0.17349084,212.31,211.85,0.07725402]
[1693591153759,7.13154531,212.39,211.85,0.07725402]
[1693591153760,0.17349084,212.3,211.86,0.86724246]
[1693591153955,0.17349084,212.37,211.86,0.94449648]
[1693591154160,0.17349084,212.37,211.87,0.86724246]
[1693591154959,0.17349084,212.36,211.87,0.86724246]
[1693591155154,0.17349084,212.39,211.86,0.86724246]
[1693591155360,0.17349084,212.38,211.87,0.86724246]
[1693591155564,0.17349084,212.39,211.85,0.86724246]
[1693591156660,0.17349084,212.4,211.85,0.86724246]
[1693591156861,0.17349084,212.39,211.85,0.86724246]
[1693591157061,0.17349084,212.4,211.85,0.86724246]
[1693591157256,0.17349084,212.39,211.85,0.86724246]
[1693591157458,0.17349084,212.4,211.85,0.86724246]
[1693591157659,0.17349084,212.39,211.85,0.86724246]
[1693591157861,0.17349084,212.4,211.85,0.86724246]
[1693591158161,0.17349084,212.39,211.86,0.86724246]
[1693591158464,0.17349084,212.38,211.87,0.86724246]
[1693591158764,0.17349084,212.37,211.88,0.86724246]
[1693591158964,0.17349084,212.41,211.83,0.86724246]
[1693591159864,0.17349084,212.42,211.83,0.86724246]
[1693591160166,0.17349084,212.41,211.83,0.86724246]
[1693591160464,0.17349084,212.4,211.83,0.94449648]
[1693591160666,0.17349084,212.43,211.84,0.86724246]
[1693591160866,0.17349084,212.42,211.84,0.86724246]
[1693591161166,0.17349084,212.41,211.84,0.86724246]
[1693591161366,0.17349084,212.44,211.84,0.86724246]
[1693591162064,0.17349084,212.45,211.84,0.86724246]
[1693591162264,0.17349084,212.44,211.84,0.86724246]
[1693591162459,0.17349084,212.45,211.84,0.86724246]
[1693591162958,0.17349084,212.44,211.84,0.86724246]
[1693591163164,0.17349084,212.46,211.84,0.86724246]
[1693591163365,0.17349084,212.45,211.84,0.86724246]
[1693591163567,0.17349084,212.44,211.84,0.86724246]
[1693591163763,0.17349084,212.46,211.84,0.86724246]
[1693591163962,0.17349084,212.45,211.83,0.86724246]
[1693591164162,0.17349084,212.46,211.84,0.86724246]
[1693591164359,0.17349084,212.45,211.83,0.86724246]
[1693591164660,0.17349084,212.44,211.83,0.86724246]
[1693591164866,0.17349084,212.46,211.83,0.86724246]
[1693591165060,0.17349084,212.45,211.83,0.86724246]
[1693591165265,0.17349084,212.46,211.83,0.86724246]
[1693591165465,0.17349084,212.45,211.83,0.86724246]
[1693591165664,0.17349084,212.47,211.83,0.86724246]
[1693591165866,0.17349084,212.46,211.83,0.94449648]
[1693591166059,0.17349084,212.47,211.84,0.86724246]
[1693591166261,0.17349084,212.46,211.84,0.86724246]
[1693591166460,0.17349084,212.45,211.85,0.86724246]
[1693591166662,0.17349084,212.47,211.83,0.86724246]
[1693591166863,0.17349084,212.46,211.84,0.86724246]
[1693591167069,0.17349084,212.47,211.83,0.86724246]
[1693591167261,0.17349084,212.46,211.85,0.86724246]
[1693591167463,0.17349084,212.47,211.86,0.86724246]
[1693591167668,0.17349084,212.46,211.83,0.86724246]
[1693591167867,0.17349084,212.47,211.84,0.86724246]
[1693591168167,0.17349084,212.46,211.85,0.86724246]
[1693591168366,0.17349084,212.47,211.83,0.94449648]
[1693591168567,5.26745178,212.47,211.84,0.86724246]
[1693591168766,0.17349084,212.46,211.83,0.94449648]
[1693591168969,0.17349084,212.46,211.84,0.86724246]
[1693591169160,5.26745178,212.46,211.84,0.94449648]
[1693591169364,0.17349084,212.45,211.85,0.86724246]
[1693591171063,0.17349084,212.45,211.79,0.86724246]
[1693591171269,7.13154531,212.42,211.8,0.86725633]
[1693591171568,0.17349084,212.41,211.81,0.86725633]
[1693591171769,0.17349084,212.41,211.79,0.86725633]
[1693591172068,0.17349084,212.41,211.78,0.07725402]
[1693591172069,5.09396094,212.38,211.8,0.86725633]
[1693591172267,0.17349084,212.37,211.79,0.94451035]
[1693591172470,0.17349084,212.37,211.8,0.86725633]
[1693591173268,5.09396094,212.36,211.8,0.94451035]
[1693591173470,5.09396094,212.36,211.8,0.86725633]
[1693591173669,0.17349084,212.35,211.81,0.86725633]
[1693591175971,0.17349084,212.35,211.8,0.86725633]
[1693591176270,0.17349084,212.35,211.81,0.86725633]
[1693591176871,0.17349084,212.35,211.8,0.86725633]
[1693591177073,0.17349084,212.35,211.81,0.86725633]
[1693591177274,0.17349084,212.35,211.8,0.94451035]
[1693591177471,0.17349084,212.35,211.81,0.86725633]
[1693591178071,0.17349084,212.35,211.82,0.86725633]
[1693591178374,0.17349084,212.35,211.83,0.86725633]
[1693591178574,0.17349084,212.35,211.79,0.07725402]
[1693591178774,0.17349084,212.35,211.8,0.86729367]
[1693591178977,0.17349084,212.35,211.79,0.86729367]
[1693591179470,5.26745178,212.35,211.79,0.86729367]
[1693591179672,0.17349084,212.34,211.79,0.86729367]
[1693591180069,0.17349084,212.34,211.78,0.86729367]
[1693591180269,0.17349084,212.34,211.77,0.07725402]
[1693591180270,0.17349084,212.34,211.79,0.86729367]
[1693591180477,0.17349084,212.34,211.78,0.94454769]
[1693591180677,0.17349084,212.34,211.79,0.86729367]
[1693591181174,0.17349084,212.34,211.8,0.86729367]
[1693591181475,0.17349084,212.34,211.81,0.86729367]
[1693591181671,0.17349084,212.34,211.78,0.86729367]
[1693591181875,0.17349084,212.34,211.79,0.86729367]
[1693591182075,0.17349084,212.34,211.78,0.86729367]
[1693591182273,0.17349084,212.34,211.79,0.86729367]
[1693591182476,0.17349084,212.35,211.78,0.86729367]
[1693591182680,0.17349084,212.34,211.79,0.86729367]
[1693591182878,0.17349084,212.35,211.78,0.86729367]
[1693591183072,0.17349084,212.34,211.79,0.86729367]
[1693591183272,0.17349084,212.33,211.8,0.86729367]
[1693591183475,0.17349084,212.32,211.81,0.86729367]
[1693591183678,0.17349084,212.31,211.82,0.86729367]
[1693591183878,0.17349084,212.3,211.77,0.07725402]
[1693591184177,0.17349084,212.29,211.78,0.8673213]
[1693591184480,0.17349084,212.28,211.79,0.8673213]
[1693591184678,0.17349084,212.35,211.8,0.8673213]
[1693591184877,0.17349084,212.34,211.81,0.8673213]
[1693591185073,5.09396094,212.36,211.76,0.07725402]
[1693591185074,0.17349084,212.35,211.77,0.8673213]
[1693591185273,0.17349084,212.34,211.78,0.8673213]
[1693591185474,0.17349084,212.35,211.77,0.8673213]
[1693591185678,0.17349084,212.34,211.78,0.8673213]
[1693591185874,0.17349084,212.35,211.77,0.8673213]
[1693591186079,0.17349084,212.35,211.76,0.07725402]
[1693591186080,0.17349084,212.34,211.78,0.8673213]
[1693591186278,0.17349084,212.35,211.77,0.8673213]
[1693591186480,0.17349084,212.34,211.78,0.8673213]
[1693591186777,0.17349084,212.33,211.79,0.8673213]
[1693591186978,0.17349084,212.36,211.78,0.8673213]
[1693591187177,0.17349084,212.35,211.79,0.8673213]
[1693591187382,5.09396094,212.37,211.78,0.8673213]
[1693591187383,0.17349084,212.36,211.78,0.8673213]
[1693591187678,0.17349084,212.35,211.79,0.8673213]
[1693591187883,5.09396094,212.37,211.78,0.8673213]
[1693591187884,0.17349084,212.36,211.78,0.8673213]
[1693591188079,0.17349084,212.35,211.79,0.8673213]
[1693591188384,0.17349084,212.34,211.8,0.8673213]
[1693591188584,0.17349084,212.36,211.78,0.8673213]
[1693591188775,0.17349084,212.35,211.79,0.8673213]
[1693591188980,0.17349084,212.36,211.78,0.8673213]
[1693591189183,0.17349084,212.35,211.79,0.8673213]
[1693591189384,0.17349084,212.36,211.78,0.8673213]
[1693591189684,0.17349084,212.35,211.78,0.8673213]
[1693591189885,0.17349084,212.36,211.78,0.8673213]
[1693591190085,0.17349084,212.35,211.78,0.8673213]
[1693591190285,0.17349084,212.36,211.78,0.8673213]
[1693591190487,0.17349084,212.35,211.78,0.8673213]
[1693591190788,0.17349084,212.34,211.78,0.8673213]
[1693591191087,0.17349084,212.33,211.78,0.8673213]
[1693591191287,0.17349084,212.36,211.78,0.8673213]
[1693591191588,0.17349084,212.35,211.78,0.8673213]
[1693591191789,0.17349084,212.34,211.79,0.8673213]
[1693591192088,0.17349084,212.33,211.8,0.8673213]
[1693591192284,0.17349084,212.32,211.81,0.8673213]
[1693591192482,0.17349084,212.31,211.82,0.8673213]
[1693591192684,0.17349084,212.3,211.77,0.8673213]
[1693591192882,5.26745178,212.36,211.78,0.86732033]
[1693591193087,0.17349084,212.35,211.78,0.86732033]
[1693591193484,0.17349084,212.35,211.79,0.86732033]
[1693591193686,0.17349084,212.35,211.77,0.86732033]
[1693591193887,0.17349084,212.35,211.78,0.86732033]
[1693591194086,0.17349084,212.35,211.77,0.86732033]
[1693591194887,5.26745178,212.35,211.77,0.86732033]
[1693591195088,0.17349084,212.34,211.77,0.86732033]
[1693591196892,0.17349084,212.34,211.77,0.94457435]
[1693591197192,5.26745178,212.34,211.78,0.86732033]
[1693591197394,0.17349084,212.33,211.77,0.86732033]
[1693591197593,0.17349084,212.33,211.78,0.86732033]
[1693591197792,0.17349084,212.33,211.77,0.94457435]
[1693591197994,0.17349084,212.33,211.78,0.86732033]
[1693591198991,5.09396094,212.32,211.78,0.94457435]
[1693591199191,0.17349084,212.31,211.79,0.86732033]
[1693591200995,5.26745178,212.31,211.79,0.94457435]
[1693591201194,0.17349084,212.3,211.8,0.86732033]
[1693591201695,0.17349084,212.3,211.8,0.94457435]
[1693591201994,0.17349084,212.3,211.81,0.86732033]
[1693591203095,5.09396094,212.29,211.81,0.86732033]
[1693591203397,0.17349084,212.28,211.81,0.86732033]
[1693591203695,0.17349084,212.27,211.81,0.94457435]
[1693591203894,5.09396094,212.29,211.82,0.94457435]
[1693591204095,0.17349084,212.28,211.83,0.86732033]
[1693591204293,0.17349084,212.28,211.82,0.07725402]
[1693591204795,0.17349084,212.28,211.84,0.07725402]
[1693591205196,0.17349084,212.28,211.85,0.07725402]
[1693591205696,5.09396094,212.27,211.85,0.07725402]
[1693591205995,0.17349084,212.26,211.85,0.07725402]
[1693591206191,0.17349084,212.26,211.84,0.07725402]
[1693591207194,5.09396094,212.24,211.84,0.07725402]
[1693591207398,0.17349084,212.23,211.83,0.07725402]
[1693591207797,0.17349084,212.23,211.84,0.07725402]
[1693591208398,0.17349084,212.23,211.83,0.07725402]
[1693591208797,0.17349084,212.23,211.84,0.07725402]
[1693591209599,0.17349084,212.23,211.83,0.07725402]
[1693591209900,0.17349084,212.22,211.84,0.07725402]
[1693591210098,0.17349084,212.24,211.84,0.07725402]
[1693591210299,0.17349084,212.23,211.84,0.07725402]
[1693591210497,0.17349084,212.24,211.84,0.07725402]
[1693591210699,0.17349084,212.23,211.84,0.07725402]
[1693591210894,5.09396094,212.25,211.84,0.07725402]
[1693591210895,0.17349084,212.24,211.84,0.07725402]
[1693591213497,5.26745178,212.24,211.84,0.07725402]
[1693591213701,0.17349084,212.23,211.84,0.07725402]
[1693591214498,0.17349084,212.24,211.84,0.07725402]
[1693591214700,0.17349084,212.23,211.84,0.07725402]
[1693591214902,0.17349084,212.24,211.84,0.07725402]
[1693591215102,0.17349084,212.23,211.84,0.07725402]
[1693591215304,0.17349084,212.24,211.83,0.07725402]
[1693591215501,0.17349084,212.23,211.84,0.07725402]
[1693591215701,0.17349084,212.24,211.83,0.07725402]
[1693591215898,0.17349084,212.23,211.83,0.07725402]
[1693591216102,0.17349084,212.22,211.83,0.07725402]
[1693591216298,5.09396094,212.25,211.78,0.07725402]
[1693591216299,0.17349084,212.21,211.78,0.07725402]
[1693591216603,0.17349084,212.2,211.75,0.07725402]
[1693591216807,0.17349084,212.19,211.75,0.07725402]
[1693591217008,5.09396094,212.2,211.75,0.07725402]
[1693591217206,0.17349084,212.19,211.75,0.07725402]
[1693591218508,0.17349084,212.19,211.74,0.07725402]
[1693591218808,0.17349084,212.18,211.73,0.07725402]
[1693591219107,0.17349084,212.17,211.74,0.86764774]
[1693591219309,0.17349084,212.16,211.74,0.86764774]
[1693591219512,0.17349084,212.21,211.74,0.86764774]
[1693591219706,0.17349084,212.2,211.73,0.86764774]
[1693591219907,0.17349084,212.21,211.74,0.86764885]
[1693591220208,0.17349084,212.21,211.72,0.07725402]
[1693591220409,0.17349084,212.21,211.73,0.86764763]
[1693591220805,0.17349084,212.22,211.73,0.86764763]
[1693591221703,0.17349084,212.22,211.71,0.07725402]
[1693591221905,0.17349084,212.22,211.72,0.86765045]
[1693591222105,0.17349084,212.22,211.71,0.86765045]
[1693591222303,0.17349084,212.22,211.72,0.86765045]
[1693591222509,0.17349084,212.23,211.72,0.94490447]
[1693591222809,0.17349084,212.22,211.73,0.86765045]
[1693591223003,0.17349084,212.25,211.73,0.86765045]
[1693591223406,0.17349084,212.25,211.72,0.86765045]
[1693591223604,0.17349084,212.25,211.73,0.86765045]
[1693591223803,0.17349084,212.25,211.72,0.86765045]
[1693591226013,0.17349084,212.25,211.71,0.94490447]
[1693591226208,0.17349084,212.25,211.72,0.86765045]
[1693591226813,0.17349084,212.25,211.71,0.86765045]
[1693591227016,0.17349084,212.25,211.72,0.86765045]
[1693591227210,0.17349084,212.25,211.71,0.86765045]
[1693591227515,0.17349084,212.25,211.72,0.86765045]
[1693591227713,0.17349084,212.25,211.71,0.86765045]
[1693591228906,5.26745178,212.25,211.71,0.86765045]
[1693591229112,0.17349084,212.24,211.72,0.86765045]
[1693591229313,0.17349084,212.24,211.73,0.86765045]
[1693591229509,0.17349084,212.24,211.74,0.86765045]
[1693591229709,0.17349084,212.24,211.75,0.86765045]
[1693591229913,0.17349084,212.24,211.69,0.07725402]
[1693591230116,0.17349084,212.24,211.7,0.86761778]
[1693591231914,0.17349084,212.24,211.69,0.86761778]
[1693591232109,0.17349084,212.24,211.71,0.86761778]
[1693591232315,0.17349084,212.24,211.68,0.07725402]
[1693591232316,0.17349084,212.24,211.72,0.86761778]
[1693591232517,0.17349084,212.24,211.7,0.86761778]
[1693591232716,0.17349084,212.24,211.69,0.07725402]
[1693591232717,0.17349084,212.24,211.71,0.86761778]
[1693591232919,0.17349084,212.24,211.7,0.86761778]
[1693591233218,0.17349084,212.24,211.71,0.86761778]
[1693591233417,0.17349084,212.24,211.7,0.86761778]
[1693591234315,0.17349084,212.24,211.71,0.07725402]
[1693591234516,0.17349084,212.26,211.74,0.07725402]
[1693591234713,0.17349084,212.25,211.75,0.9448718]
[1693591234916,0.17349084,212.24,211.76,0.9448718]